{"text_format":"1","workbook":"xlsx","n_sheets":3,"sheets":["Регионы","MainMap","ESRI_MAPINFO_SHEET"],"not_rendered":{"charts":0,"images":0,"macros":1,"external_links":0,"defined_names":3,"comments":0,"pivot_tables":0},"unopened":[],"bounds":{"document_bytes":16777216,"sheet_cells":100000,"rows_first":2000,"rows_last":500,"rows_between":2000,"halvings":0,"cell_chars":16384,"cell_head_chars":4096},"cells_cut":0,"cells_raw":0,"read":"whole","date_system":"1900"}

{"sheet":"Регионы","index":0,"n_rows":40,"n_cols":12,"rows_kept":40,"cut":false,"hidden":false,"merged":[[0,6,0,7],[11,6,11,7]]}
["субъект","Значение показателя",null,null,"Шкала","Цвет","Показатель меньше",null,null,null,"Показатель","Ранг"]
["Агрызский",{"$f":"L2","v":2},null,null,0,null,null,null,null,null,51169.55,{"$f":"ROUND(K2/MAX(K$2:K$40)*9,0)","v":2}]
["Аксубаевский",{"$f":"L3","v":6},null,null,1,null,null,null,null,null,139865.60000000001,{"$f":"ROUND(K3/MAX(K$2:K$40)*9,0)","v":6}]
["Алексеевский",2,null,null,2,null,null,null,null,null,46434.400000000001,{"$f":"ROUND(K4/MAX(K$2:K$40)*9,0)","v":2}]
["Алькеевский",3,null,null,3,null,null,null,null,null,68878.7,{"$f":"ROUND(K5/MAX(K$2:K$40)*9,0)","v":3}]
["Альметьевский",1,null,null,4,null,null,null,null,null,11688,{"$f":"ROUND(K6/MAX(K$2:K$40)*9,0)","v":1}]
["Апастовский",1,null,null,5,null,null,null,null,null,18831,{"$f":"ROUND(K7/MAX(K$2:K$40)*9,0)","v":1}]
["Арский",2,null,null,6,null,null,null,null,null,39673,{"$f":"ROUND(K8/MAX(K$2:K$40)*9,0)","v":2}]
["Атнинский",1,null,null,7,null,null,null,null,null,11861,{"$f":"ROUND(K9/MAX(K$2:K$40)*9,0)","v":1}]
["Балтасинский",4,null,null,8,null,null,null,null,null,81858.8,{"$f":"ROUND(K10/MAX(K$2:K$40)*9,0)","v":4}]
["Буинский",0,null,null,9,null,null,null,null,null,3750,{"$f":"ROUND(K11/MAX(K$2:K$40)*9,0)","v":0}]
["Верхнеуслонский",5,null,null,null,null,"Показатель больше",null,null,null,105417.3,{"$f":"ROUND(K12/MAX(K$2:K$40)*9,0)","v":5}]
["Высокогорский",1,null,null,null,null,null,null,null,null,27654,{"$f":"ROUND(K13/MAX(K$2:K$40)*9,0)","v":1}]
["Дрожжановский",3,null,null,null,null,null,null,null,null,70997,{"$f":"ROUND(K14/MAX(K$2:K$40)*9,0)","v":3}]
["Елабужский",0,null,null,null,null,null,null,null,null,8375,{"$f":"ROUND(K15/MAX(K$2:K$40)*9,0)","v":0}]
["Заинский",5,null,null,null,null,null,null,null,null,110996.57,{"$f":"ROUND(K16/MAX(K$2:K$40)*9,0)","v":5}]
["Зеленодольский",2,null,null,null,null,null,null,null,null,47149.599999999999,{"$f":"ROUND(K17/MAX(K$2:K$40)*9,0)","v":2}]
["Казань",2,null,null,null,null,null,null,null,null,51093.42,{"$f":"ROUND(K18/MAX(K$2:K$40)*9,0)","v":2}]
["Кайбицкий",7,null,null,null,null,null,null,null,null,165072,{"$f":"ROUND(K19/MAX(K$2:K$40)*9,0)","v":7}]
["Камско-Устьинский",1,null,null,null,null,null,null,null,null,32626.7,{"$f":"ROUND(K20/MAX(K$2:K$40)*9,0)","v":1}]
["Кукморский",2,null,null,null,null,null,null,null,null,36316.5,{"$f":"ROUND(K21/MAX(K$2:K$40)*9,0)","v":2}]
["Лаишевский",0,null,null,null,null,null,null,null,null,null,{"$f":"ROUND(K22/MAX(K$2:K$40)*9,0)","v":0}]
["Лениногорский",0,null,null,null,null,null,null,null,null,6770.9,{"$f":"ROUND(K23/MAX(K$2:K$40)*9,0)","v":0}]
["Мамадышский",0,null,null,null,null,null,null,null,null,3620,{"$f":"ROUND(K24/MAX(K$2:K$40)*9,0)","v":0}]
["Менделеевский",7,null,null,null,null,null,null,null,null,163609.75,{"$f":"ROUND(K25/MAX(K$2:K$40)*9,0)","v":7}]
["Мензелинский",2,null,null,null,null,null,null,null,null,35439,{"$f":"ROUND(K26/MAX(K$2:K$40)*9,0)","v":2}]
["Нижнекамский",2,null,null,null,null,null,null,null,null,53820.1,{"$f":"ROUND(K27/MAX(K$2:K$40)*9,0)","v":2}]
["Новошешминский",3,null,null,null,null,null,null,null,null,76078.8,{"$f":"ROUND(K28/MAX(K$2:K$40)*9,0)","v":3}]
["Нурлатский",4,null,null,null,null,null,null,null,null,97626,{"$f":"ROUND(K29/MAX(K$2:K$40)*9,0)","v":4}]
["Пестречинский",3,null,null,null,null,null,null,null,null,70460,{"$f":"ROUND(K30/MAX(K$2:K$40)*9,0)","v":3}]
["Рыбно-Слободской",9,null,null,null,null,null,null,null,null,197108,{"$f":"ROUND(K31/MAX(K$2:K$40)*9,0)","v":9}]
["Сабинский",5,null,null,null,null,null,null,null,null,115315,{"$f":"ROUND(K32/MAX(K$2:K$40)*9,0)","v":5}]
["Сармановский",7,null,null,null,null,null,null,null,null,154484.5,{"$f":"ROUND(K33/MAX(K$2:K$40)*9,0)","v":7}]
["Спасский",9,null,null,null,null,null,null,null,null,205430.95,{"$f":"ROUND(K34/MAX(K$2:K$40)*9,0)","v":9}]
["Тетюшский",3,null,null,null,null,null,null,null,null,59808.01,{"$f":"ROUND(K35/MAX(K$2:K$40)*9,0)","v":3}]
["Тукаевский",7,null,null,null,null,null,null,null,null,160221.51,{"$f":"ROUND(K36/MAX(K$2:K$40)*9,0)","v":7}]
["Тюлячинский",8,null,null,null,null,null,null,null,null,172898.9,{"$f":"ROUND(K37/MAX(K$2:K$40)*9,0)","v":8}]
["Черемшанский",3,null,null,null,null,null,null,null,null,70437,{"$f":"ROUND(K38/MAX(K$2:K$40)*9,0)","v":3}]
["Чистопольский",4,null,null,null,null,null,null,null,null,82804,{"$f":"ROUND(K39/MAX(K$2:K$40)*9,0)","v":4}]
[null,null,null,null,null,null,null,null,null,null,41377.800000000003,{"$f":"ROUND(K40/MAX(K$2:K$40)*9,0)","v":2}]

{"sheet":"MainMap","index":1,"n_rows":52,"n_cols":19,"rows_kept":52,"cut":false,"hidden":false,"merged":[[49,2,49,3],[17,17,18,18],[37,17,38,18],[0,17,2,18],[38,2,38,3]]}
[null,null,null,null,null,null,null,null,null,null,null,null,null,null,null,null,null,"Муниципальные районы с центром - городом республиканского подчинения и городские округа"]
[]
[]
[null,null,null,null,null,null,null,null,null,null,null,null,null,null,null,null,null,1,"Казань"]
[null,null,null,null,null,null,null,null,null,null,null,null,null,null,null,null,null,2,"Альметьевский"]
[null,null,null,null,null,null,null,null,null,null,null,null,null,null,null,null,null,3,"Нижнекамский"]
[null,null,null,null,null,null,null,null,null,null,null,null,null,null,null,null,null,4,"Лениногорский"]
[null,null,null,null,null,null,null,null,null,null,null,null,null,null,null,null,null,5,"Азнакаевский"]
[null,null,null,null,null,null,null,null,null,null,null,null,null,null,null,null,null,6,"Нурлатский"]
[null,null,null,null,null,null,null,null,null,null,null,null,null,null,null,null,null,7,"Набережные Челны"]
[null,null,null,null,null,null,null,null,null,null,null,null,null,null,null,null,null,8,"Елабужский"]
[null,null,null,null,null,null,null,null,null,null,null,null,null,null,null,null,null,9,"Бугульминский"]
[null,null,null,null,null,null,null,null,null,null,null,null,null,null,null,null,null,10,"Заинский"]
[null,null,null,null,null,null,null,null,null,null,null,null,null,null,null,null,null,11,"Зеленодольский"]
[null,null,null,null,null,null,null,null,null,null,null,null,null,null,null,null,null,12,"Бавлинский"]
[null,null,null,null,null,null,null,null,null,null,null,null,null,null,null,null,null,13,"Буинский"]
[null,null,null,null,null,null,null,null,null,null,null,null,null,null,null,null,null,14,"Чистопольский"]
[null,null,null,null,null,null,null,null,null,null,null,null,null,null,null,null,null,"Муниципальные районы, имеющие городское и сельское население"]
[]
[null,null,null,null,null,null,null,null,null,null,null,null,null,null,null,null,null,1,"Лаишевский"]
[null,null,null,null,null,null,null,null,null,null,null,null,null,null,null,null,null,2,"Менделеевский"]
[null,null,null,null,null,null,null,null,null,null,null,null,null,null,null,null,null,3,"Сармановский"]
[null,null,null,null,null,null,null,null,null,null,null,null,null,null,null,null,null,4,"Апастовский"]
[null,null,null,null,null,null,null,null,null,null,null,null,null,null,null,null,null,5,"Югазинский"]
[null,null,null,null,null,null,null,null,null,null,null,null,null,null,null,null,null,6,"Агрызский"]
[null,null,null,null,null,null,null,null,null,null,null,null,null,null,null,null,null,7,"Мензелинский"]
[null,null,null,null,null,null,null,null,null,null,null,null,null,null,null,null,null,8,"Сабинский"]
[null,null,null,null,null,null,null,null,null,null,null,null,null,null,null,null,null,9,"Аксубаевский"]
[null,null,null,null,null,null,null,null,null,null,null,null,null,null,null,null,null,10,"Мамадышский"]
[null,null,null,null,null,null,null,null,null,null,null,null,null,null,null,null,null,11,"Камско-Устьинский"]
[null,null,null,null,null,null,null,null,null,null,null,null,null,null,null,null,null,12,"Арский"]
[null,null,null,null,null,null,null,null,null,null,null,null,null,null,null,null,null,13,"Балтасинский"]
[null,null,null,null,null,null,null,null,null,null,null,null,null,null,null,null,null,14,"Кукморский"]
[null,null,null,null,null,null,null,null,null,null,null,null,null,null,null,null,null,15,"Алексеевский"]
[null,null,null,null,null,null,null,null,null,null,null,null,null,null,null,null,null,16,"Тетюшский"]
[null,null,null,null,null,null,null,null,null,null,null,null,null,null,null,null,null,17,"Рыбно-Слободской"]
[null,null,null,null,null,null,null,null,null,null,null,null,null,null,null,null,null,18,"Спасский"]
[null,null,null,null,null,null,null,null,null,null,null,null,null,null,null,null,null,"Муниципальные районы, имеющие только сельское население"]
["Шкала","Цвет","Показатель меньше"]
[0,null,null,null,null,null,null,null,null,null,null,null,null,null,null,null,null,1,"Тукаевский"]
[1,null,null,null,null,null,null,null,null,null,null,null,null,null,null,null,null,2,"Верхнеуслонский"]
[2,null,null,null,null,null,null,null,null,null,null,null,null,null,null,null,null,3,"Новошешминский"]
[3,null,null,null,null,null,null,null,null,null,null,null,null,null,null,null,null,4,"Пестречинский"]
[4,null,null,null,null,null,null,null,null,null,null,null,null,null,null,null,null,5,"Черемшанский"]
[5,null,null,null,null,null,null,null,null,null,null,null,null,null,null,null,null,6,"Актанышский"]
[6,null,null,null,null,null,null,null,null,null,null,null,null,null,null,null,null,7,"Высокогорский"]
[7,null,null,null,null,null,null,null,null,null,null,null,null,null,null,null,null,8,"Тюлячинский"]
[8,null,null,null,null,null,null,null,null,null,null,null,null,null,null,null,null,9,"Дрожжановс ки й"]
[9,null,null,null,null,null,null,null,null,null,null,null,null,null,null,null,null,10,"Алькеевский"]
[null,null,"Показатель больше",null,null,null,null,null,null,null,null,null,null,null,null,null,null,11,"Кайбицкий"]
[null,null,null,null,null,null,null,null,null,null,null,null,null,null,null,null,null,12,"Атнинский"]
[null,null,null,null,null,null,null,null,null,null,null,null,null,null,null,null,null,13,"Муслюмовский"]

{"sheet":"ESRI_MAPINFO_SHEET","index":2,"n_rows":0,"n_cols":0,"rows_kept":0,"cut":false,"hidden":true,"merged":[]}